fUSD/lending_fUSD_20241227
["ID","MTS","AMOUNT","RATE_DAILY","PERIOD"]
[346815068,1735303857305,-500.0,0.00011156,2]
[346815069,1735303857315,-500.0,0.00011156,2]
[346815070,1735303857327,-500.0,0.00011156,2]
[346815071,1735303857337,-1035.53,0.00011156,2]
[346815072,1735303857347,-407.55752286,0.00011156,2]
[346815073,1735303857357,-500.0,0.00011156,2]
[346815074,1735303857367,-643.43,0.00011156,2]
[346815075,1735303857378,-6903.11,0.00011156,2]
[346815076,1735303857387,-500.0,0.00011156,2]
[346815077,1735303857397,-541.8,0.00011156,2]
[346815078,1735303857406,-3886.21,0.00011156,2]
[346815079,1735303857416,-500.0,0.00011156,2]
[346815080,1735303857426,-617.61,0.00011156,2]
[346815081,1735303857436,-1316.47,0.00011156,2]
[346815082,1735303857446,-2574.51,0.00011156,2]
[346815083,1735303857455,-500.0,0.00011156,2]
[346815084,1735303857465,-1062.77,0.00011156,2]
[346815085,1735303857475,-576.84,0.00011156,2]
[346815086,1735303857484,-500.0,0.00011156,2]
[346815087,1735303857494,-1195.63,0.00011156,2]
[346815088,1735303857505,-5672.87,0.00011156,2]
[346815089,1735303857514,-1193.17,0.00011156,2]
[346815090,1735303857524,-500.0,0.00011156,2]
[346815091,1735303857534,-43229.16,0.00011156,2]
[346815092,1735303857543,-1195.22,0.00011156,2]
[346815093,1735303857553,-500.0,0.00011156,2]
[346815094,1735303857562,-5217.76,0.00011156,2]
[346815095,1735303857572,-1059.85,0.00011156,2]
[346815096,1735303857582,-1531.86,0.00011156,2]
[346815097,1735303857591,-869.53,0.00011156,2]
[346815098,1735303857602,-1452.33,0.00011156,2]
[346815099,1735303857611,-4071.07,0.00011156,2]
[346815100,1735303857622,-500.0,0.00011156,2]
[346815101,1735303857632,-500.0,0.00011156,2]
[346815102,1735303857643,-500.0,0.00011156,2]
[346815103,1735303857652,-936.7,0.00011156,2]
[346815104,1735303857662,-500.0,0.00011156,2]
[346815105,1735303857671,-721.29,0.00011156,2]
[346815106,1735303857681,-1356.6,0.00011156,2]
[346815107,1735303857691,-2955.54,0.00011156,2]
[346815108,1735303857700,-500.0,0.00011156,2]
[346815109,1735303857709,-500.0,0.00011156,2]
[346815110,1735303857719,-1182.5,0.00011156,2]
[346815111,1735303857729,-500.0,0.00011156,2]
[346815112,1735303857738,-614.98,0.00011156,2]
[346815113,1735303857748,-500.0,0.00011156,2]
[346815114,1735303857757,-1081.42,0.00011156,2]
[346815115,1735303857766,-500.0,0.00011156,2]
[346815116,1735303857776,-500.0,0.00011156,2]
[346815117,1735303857786,-1184.86,0.00011156,2]
[346815118,1735303857795,-500.0,0.00011156,2]
[346815119,1735303857805,-3955.38,0.00011156,2]
[346815120,1735303857815,-2582.84,0.00011156,2]
[346815121,1735303857825,-4387.26,0.00011156,2]
[346815122,1735303857835,-2833.33,0.00011156,2]
[346815123,1735303857845,-3958.34,0.00011156,2]
[346815124,1735303857854,-3118.31,0.00011156,2]
[346815125,1735303857864,-6889.34,0.00011156,2]
[346815126,1735303857873,-5164.39,0.00011156,2]
[346815127,1735303857883,-6602.28,0.00011156,2]
[346815128,1735303857892,-6666.4,0.00011156,2]
[346815129,1735303857902,-63716.53,0.00011156,2]
[346815130,1735303857912,-156.676808,0.00011157,2]
[346815131,1735303857921,-2000.0,0.00011157,2]
[346815132,1735303857930,-200.0,0.00011157,2]
[346815133,1735303857940,-9206.013,0.00011157,2]
[346815134,1735303857950,-2603.18,0.00011157,2]
[346815135,1735303857960,-2902.57,0.00011157,2]
[346815136,1735303857969,-4820.91,0.00011157,2]
[346815137,1735303857979,-20832.13,0.00011157,2]
[346815138,1735303857988,-4512.53,0.00011157,2]
[346815139,1735303857998,-8343.47,0.00011157,2]
[346815140,1735303858008,-16274.59,0.00011157,2]
[346815141,1735303858018,-4188.34,0.00011157,2]
[346815142,1735303858027,-2000.0,0.00011157,2]
[346815143,1735303858036,-200.0,0.00011157,2]
[346815144,1735303858046,-8027.1,0.00011157,2]
[346815145,1735303858055,-6077.85,0.00011157,2]
[346815146,1735303858066,-4389.81,0.00011157,2]
[346815147,1735303858075,-1142.97,0.00011157,2]
[346815148,1735303858084,-1142.97,0.00011157,2]
[346815149,1735303858094,-5703.71,0.00011157,2]
[346815150,1735303858103,-10133.69,0.00011157,2]
[346815151,1735303858114,-10133.69,0.00011157,2]
[346815152,1735303858123,-500.0,0.00011157,2]
[346815153,1735303858134,-2979.91,0.00011157,2]
[346815154,1735303858145,-3000.0,0.00011157,2]
[346815155,1735303858155,-200.0,0.00011157,2]
[346815156,1735303858164,-1821.27,0.00011157,2]
[346815157,1735303858174,-1821.27,0.00011157,2]
[346815158,1735303858184,-198.95902513,0.00011173,2]
[346815159,1735303858194,-1238.32798221,0.00011191,3]
[346815160,1735303858203,-1238.32798221,0.00011191,3]
[346815161,1735303858214,-1238.32798223,0.00011191,3]
[346815162,1735303858224,-876.95,0.00011191,2]
[346815163,1735303858233,-4610311.09116346,0.00011192,4]
[346815164,1735303859036,-500.0,0.00011192,4]
[346815165,1735303859048,-9068.20096243,0.00011192,4]
[346815166,1735303859059,-10067.87935823,0.00011192,4]
[346815167,1735303859080,-512.27802841,0.00011192,4]
[346815168,1735303859092,-18599.6974951,0.00011192,4]
[346815169,1735303860043,-500.0,0.00010878,2]
[346815170,1735303860053,-500.0,0.00010879,2]
[346815171,1735303860063,-500.0,0.00010879,2]
[346815172,1735303860073,-209.33284851,0.00011073,2]
[346815173,1735303860085,-500.0,0.00011153,2]
[346815174,1735303860095,-305.03803323,0.00011153,2]
[346815175,1735303860216,-194.96196677,0.00011153,2]
[346815176,1735303860227,-159777.77998665,0.00011192,4]
[346815177,1735303860855,-500.0,0.00010878,2]
[346815178,1735303860864,-500.0,0.00010879,2]
[346815179,1735303860875,-500.0,0.00010879,2]
[346815180,1735303860884,-500.0,0.0001088,2]
[346815181,1735303860895,-500.0,0.00011154,2]
[346815182,1735303860904,-5264.43157873,0.00011192,4]
[346815183,1735303860916,-4950.0,0.00011192,4]
[346815184,1735303860928,-1200.0,0.00011192,4]
[346815185,1735303860939,-394.87293215,0.00011192,4]
[346815186,1735303860952,-2246.0755736,0.00011192,4]
[346815187,1735303860963,-5132.2190332,0.00011192,4]
[346815188,1735303860975,-2112.7,0.00011192,4]
[346815189,1735303860986,-524.31588696,0.00011192,4]
[346815190,1735303861020,-211095.45477527,0.00011192,4]
[346815191,1735303861039,-3167.46,0.00010879,2]
[346815192,1735303861049,-1721026.27561764,0.00011192,4]
[346815193,1735303861061,-16021.28016304,0.00011192,4]
[346815194,1735303861079,-1864.749998,0.00011192,4]
[346815195,1735304110093,829.05,8.291e-05,2]
[346815197,1735304706429,87913.0,0.0002,120]
[346815198,1735304759064,-250.0,0.00010011,2]
[346815199,1735304759090,-177.41,0.00010109,2]
[346815200,1735304759116,-157.96,0.00010137,2]
[346815201,1735304759146,-710.24,0.00010219,2]
[346815202,1735304759172,-250.0,0.00010219,2]
[346815203,1735304759198,-1000.0,0.00010258,2]
[346815204,1735304773779,-829.05,0.00010555,2]
[346815205,1735304773807,-176.63,0.00010566,2]
[346815206,1735304773833,-167.57,0.0001058,2]
[346815207,1735304773859,-300.0,0.00010777,2]
[346815208,1735304773883,-1000.0,0.00010778,2]
[346815209,1735304773908,-5945.0851,0.00010778,2]
[346815210,1735304773932,-2500.0,0.00010778,2]
[346815211,1735304773957,-720.9565,0.00010778,2]
[346815212,1735304773982,-181.43052066,0.00010779,2]
[346815213,1735304774006,-602.01,0.00010877,2]
[346815214,1735304774030,-500.0,0.00010877,2]
[346815215,1735304774059,-2163.42,0.00010877,2]
[346815216,1735304774083,-500.0,0.00010877,2]
[346815217,1735304774109,-858.42,0.00010877,2]
[346815218,1735304774134,-1451.68,0.00010877,2]
[346815219,1735304774159,-586.02,0.00010877,2]
[346815220,1735304774184,-500.0,0.00010877,2]
[346815221,1735304774208,-500.0,0.00010877,2]
[346815222,1735304774232,-500.0,0.00010877,2]
[346815223,1735304774256,-500.0,0.00010877,2]
[346815224,1735304774281,-500.0,0.00010877,2]
[346815225,1735304774309,-658.2,0.00010877,2]
[346815226,1735304774334,-500.0,0.00010877,2]
[346815227,1735304774360,-500.0,0.00010877,2]
[346815228,1735304774385,-985.91,0.00010877,2]
[346815229,1735304774411,-524.28,0.00010877,2]
[346815230,1735304774438,-798.04,0.00010877,2]
[346815231,1735304774462,-500.0,0.00010877,2]
[346815232,1735304774488,-993.7,0.00010877,2]
[346815233,1735304774513,-500.0,0.00010877,2]
[346815234,1735304774536,-500.0,0.00010877,2]
[346815235,1735304774565,-500.0,0.00010877,2]
[346815236,1735304774591,-973.11,0.00010877,2]
[346815237,1735304774617,-500.0,0.00010877,2]
[346815238,1735304774932,-500.0,0.00010877,2]
[346815239,1735304774958,-252.78617341,0.00010877,2]
[346815240,1735304774983,-500.0,0.00010877,2]
[346815241,1735304775013,-1582.84,0.00010877,2]
[346815242,1735304775039,-500.0,0.00010877,2]
[346815243,1735304775064,-500.0,0.00010877,2]
[346815244,1735304775089,-500.0,0.00010877,2]
[346815245,1735304775113,-500.0,0.00010877,2]
[346815246,1735304775138,-224.62137976,0.00010877,2]
[346815247,1735304775163,-611.26,0.00010877,2]
[346815248,1735304775187,-500.0,0.00010877,2]
[346815249,1735304775212,-500.0,0.00010877,2]
[346815250,1735304775238,-903.01,0.00010877,2]
[346815251,1735304775263,-500.0,0.00010877,2]
[346815252,1735304775295,-500.0,0.00010877,2]
[346815253,1735304775321,-822.2,0.00010877,2]
[346815254,1735304775347,-900.22,0.00010877,2]
[346815255,1735304775373,-500.0,0.00010877,2]
[346815256,1735304775398,-1222.79,0.00010877,2]
[346815257,1735304775425,-500.0,0.00010877,2]
[346815258,1735304775450,-500.0,0.00010877,2]
[346815259,1735304775477,-500.0,0.00010877,2]
[346815260,1735304775504,-500.0,0.00010877,2]
[346815261,1735304775530,-500.0,0.00010877,2]
[346815262,1735304775558,-2573.73,0.00010877,2]
[346815263,1735304775585,-500.0,0.00010877,2]
[346815264,1735304775611,-500.0,0.00010877,2]
[346815265,1735304775637,-500.0,0.00010877,2]
[346815266,1735304775667,-500.0,0.00010877,2]
[346815267,1735304775695,-500.0,0.00010877,2]
[346815268,1735304775726,-626.72,0.00010877,2]
[346815269,1735304775753,-500.0,0.00010877,2]
[346815270,1735304775780,-500.0,0.00010877,2]
[346815271,1735304775807,-1634.39,0.00010877,2]
[346815272,1735304775834,-1665.12,0.00010877,2]
[346815273,1735304775864,-897.0,0.00010877,2]
[346815274,1735304775891,-1086.65,0.00010877,2]
[346815275,1735304775916,-776.68,0.00010877,2]
[346815276,1735304775941,-501.92630231,0.00010877,2]
[346815277,1735304775968,-939.4,0.00010877,2]
[346815278,1735304775993,-500.0,0.00010877,2]
[346815279,1735304776018,-1759.06,0.00010877,2]
[346815280,1735304776045,-500.0,0.00010877,2]
[346815281,1735304776071,-500.0,0.00010877,2]
[346815282,1735304776096,-500.0,0.00010877,2]
[346815283,1735304776121,-500.0,0.00010877,2]
[346815284,1735304776146,-894.09,0.00010877,2]
[346815285,1735304776175,-1305.88,0.00010877,2]
[346815286,1735304776200,-2287.6,0.00010877,2]
[346815287,1735304776227,-500.0,0.00010877,2]
[346815288,1735304776251,-438.38457062,0.00010877,2]
[346815289,1735304776291,-500.0,0.00010877,2]
[346815290,1735304776319,-611.09,0.00010877,2]
[346815291,1735304776346,-573.82,0.00010877,2]
[346815292,1735304776373,-500.0,0.00010877,2]
[346815293,1735304776401,-500.0,0.00010877,2]
[346815294,1735304776428,-500.0,0.00010877,2]
[346815295,1735304776455,-500.0,0.00010877,2]
[346815296,1735304776482,-575.1,0.00010877,2]
[346815297,1735304776509,-869.09,0.00010877,2]
[346815298,1735304776536,-1182.54,0.00010877,2]
[346815299,1735304776565,-500.0,0.00010877,2]
[346815300,1735304776592,-500.0,0.00010877,2]
[346815301,1735304776619,-500.0,0.00010877,2]
[346815302,1735304776647,-500.0,0.00010877,2]
[346815303,1735304776672,-500.0,0.00010877,2]
[346815304,1735304776699,-500.0,0.00010877,2]
[346815305,1735304776726,-501.96080945,0.00010877,2]
[346815306,1735304776753,-500.0,0.00010877,2]
[346815307,1735304776781,-500.0,0.00010877,2]
[346815308,1735304776809,-500.0,0.00010877,2]
[346815309,1735304776842,-1033.69,0.00010877,2]
[346815310,1735304776870,-744.39,0.00010877,2]
[346815311,1735304776897,-4316.38,0.00010877,2]
[346815312,1735304776923,-500.0,0.00010877,2]
[346815313,1735304776950,-1359.08,0.00010877,2]
[346815314,1735304776976,-500.0,0.00010877,2]
[346815315,1735304777003,-500.0,0.00010877,2]
[346815316,1735304777030,-500.0,0.00010877,2]
[346815317,1735304777059,-500.0,0.00010877,2]
[346815318,1735304777084,-500.0,0.00010877,2]
[346815319,1735304777110,-500.0,0.00010877,2]
[346815320,1735304777138,-699.37,0.00010877,2]
[346815321,1735304777166,-500.0,0.00010877,2]
[346815322,1735304777191,-500.0,0.00010877,2]
[346815323,1735304777218,-6066.43,0.00010877,2]
[346815324,1735304777244,-500.0,0.00010877,2]
[346815325,1735304777269,-500.0,0.00010877,2]
[346815326,1735304777300,-500.0,0.00010877,2]
[346815327,1735304777326,-842.55,0.00010877,2]
[346815328,1735304777351,-500.0,0.00010877,2]
[346815329,1735304777376,-500.0,0.00010877,2]
[346815330,1735304777407,-500.0,0.00010877,2]
[346815331,1735304777432,-3284.29,0.00010877,2]
[346815332,1735304777459,-575.51,0.00010877,2]
[346815333,1735304777783,-500.0,0.00010877,2]
[346815334,1735304777813,-500.0,0.00010877,2]
[346815335,1735304777839,-803.87,0.00010877,2]
[346815336,1735304777865,-500.0,0.00010877,2]
[346815337,1735304777890,-500.0,0.00010877,2]
[346815338,1735304777915,-1571.14,0.00010877,2]
[346815339,1735304777942,-500.0,0.00010877,2]
[346815340,1735304777968,-500.0,0.00010877,2]
[346815341,1735304777994,-500.0,0.00010877,2]
[346815342,1735304778020,-500.0,0.00010877,2]
[346815343,1735304778056,-5253.24,0.00010877,2]
[346815344,1735304778084,-500.0,0.00010877,2]
[346815345,1735304778112,-500.0,0.00010877,2]
[346815346,1735304778140,-500.0,0.00010877,2]
[346815347,1735304778168,-1976.36,0.00010877,2]
[346815348,1735304778196,-500.0,0.00010877,2]
[346815349,1735304778237,-500.0,0.00010877,2]
[346815350,1735304778268,-500.0,0.00010877,2]
[346815351,1735304778303,-500.0,0.00010877,2]
[346815352,1735304778331,-500.0,0.00010877,2]
[346815353,1735304778360,-500.0,0.00010877,2]
[346815354,1735304778387,-1144.19,0.00010877,2]
[346815355,1735304778414,-500.0,0.00010877,2]
[346815356,1735304778441,-743.57,0.00010877,2]
[346815357,1735304778467,-500.0,0.00010877,2]
[346815358,1735304778495,-500.0,0.00010877,2]
[346815359,1735304778521,-500.0,0.00010877,2]
[346815360,1735304778551,-633.16764166,0.00010877,2]
[346815361,1735304778578,-1723.41,0.00010877,2]
[346815362,1735304778607,-500.0,0.00010877,2]
[346815363,1735304778635,-500.0,0.00010877,2]
[346815364,1735304778667,-500.0,0.00010877,2]
[346815365,1735304778695,-501.38992467,0.00010877,2]
[346815366,1735304778721,-500.0,0.00010877,2]
[346815367,1735304778750,-1843.11,0.00010877,2]
[346815368,1735304778777,-2020.25,0.00010877,2]
[346815369,1735304778812,-500.0,0.00010877,2]
[346815370,1735304778839,-500.0,0.00010877,2]
[346815371,1735304778867,-3887.04,0.00010877,2]
[346815372,1735304778893,-500.0,0.00010877,2]
[346815373,1735304778919,-500.0,0.00010877,2]
[346815374,1735304778947,-500.0,0.00010877,2]
[346815375,1735304778976,-500.0,0.00010877,2]
[346815376,1735304779004,-500.0,0.00010877,2]
[346815377,1735304779031,-664.14,0.00010877,2]
[346815378,1735304779059,-910.1,0.00010877,2]
[346815379,1735304779085,-500.0,0.00010877,2]
[346815380,1735304779112,-500.0,0.00010877,2]
[346815381,1735304779138,-500.0,0.00010877,2]
[346815382,1735304779168,-3376.94,0.00010877,2]
[346815383,1735304779194,-544.23,0.00010877,2]
[346815384,1735304779221,-500.0,0.00010877,2]
[346815385,1735304779248,-500.0,0.00010877,2]
[346815386,1735304779276,-500.0,0.00010877,2]
[346815387,1735304779307,-1078.96,0.00010877,2]
[346815388,1735304779337,-501.07,0.00010877,2]
[346815389,1735304779367,-500.0,0.00010877,2]
[346815390,1735304779397,-500.0,0.00010877,2]
[346815391,1735304779425,-501.04340522,0.00010877,2]
[346815392,1735304779453,-514.49,0.00010877,2]
[346815393,1735304779481,-870.69,0.00010877,2]
[346815394,1735304779509,-500.0,0.00010877,2]
[346815395,1735304779536,-500.0,0.00010877,2]
[346815396,1735304779565,-500.0,0.00010877,2]
[346815397,1735304779593,-1250.64,0.00010877,2]
[346815398,1735304779620,-1151.34,0.00010877,2]
[346815399,1735304779649,-500.0,0.00010877,2]
[346815400,1735304779677,-500.0,0.00010877,2]
[346815401,1735304779704,-500.0,0.00010877,2]
[346815402,1735304779733,-586.74,0.00010877,2]
[346815403,1735304779759,-500.0,0.00010877,2]
[346815404,1735304779786,-500.0,0.00010877,2]
[346815405,1735304779814,-500.0,0.00010877,2]
[346815406,1735304779844,-537.34,0.00010877,2]
[346815407,1735304779871,-500.0,0.00010877,2]
[346815408,1735304779897,-500.0,0.00010877,2]
[346815409,1735304779923,-500.0,0.00010877,2]
[346815410,1735304779949,-580.11,0.00010877,2]
[346815411,1735304779974,-500.0,0.00010877,2]
[346815412,1735304779999,-500.0,0.00010877,2]
[346815413,1735304780026,-5985.8,0.00010877,2]
[346815414,1735304780052,-711.94,0.00010877,2]
[346815415,1735304780078,-500.0,0.00010877,2]
[346815416,1735304780104,-1255.14,0.00010877,2]
[346815417,1735304780130,-500.0,0.00010877,2]
[346815418,1735304780154,-500.0,0.00010877,2]
[346815419,1735304780178,-500.0,0.00010877,2]
[346815420,1735304780203,-500.0,0.00010877,2]
[346815421,1735304780228,-500.0,0.00010877,2]
[346815422,1735304780253,-500.0,0.00010877,2]
[346815423,1735304780278,-500.0,0.00010877,2]
[346815424,1735304780303,-500.0,0.00010877,2]
[346815425,1735304780328,-500.0,0.00010877,2]
[346815426,1735304780353,-500.0,0.00010877,2]
[346815427,1735304780379,-500.0,0.00010877,2]
[346815428,1735304780632,-1360.8,0.00010877,2]
[346815429,1735304780659,-500.0,0.00010877,2]
[346815430,1735304780684,-6325.0,0.00010877,2]
[346815431,1735304780710,-500.0,0.00010877,2]
[346815432,1735304780734,-500.0,0.00010877,2]
[346815433,1735304780760,-9542.74,0.00010877,2]
[346815434,1735304780785,-1129.82,0.00010877,2]
[346815435,1735304780810,-500.0,0.00010877,2]
[346815436,1735304780835,-500.0,0.00010877,2]
[346815437,1735304780862,-500.0,0.00010877,2]
[346815438,1735304780886,-500.0,0.00010877,2]
[346815439,1735304780911,-787.24,0.00010877,2]
[346815440,1735304780937,-439.00600571,0.00010877,2]
[346815441,1735304780962,-500.0,0.00010877,2]
[346815442,1735304780986,-500.0,0.00010877,2]
[346815443,1735304781010,-500.0,0.00010877,2]
[346815444,1735304781035,-2358.95,0.00010877,2]
[346815445,1735304781060,-500.0,0.00010877,2]
[346815446,1735304781087,-892.82,0.00010877,2]
[346815447,1735304781111,-1108.33,0.00010877,2]
[346815448,1735304781137,-500.0,0.00010877,2]
[346815449,1735304781162,-500.0,0.00010877,2]
[346815450,1735304781187,-2500.08,0.00010877,2]
[346815451,1735304781216,-1367.06,0.00010877,2]
[346815452,1735304781242,-3409.51,0.00010877,2]
[346815453,1735304781267,-500.0,0.00010877,2]
[346815454,1735304781292,-3790.7,0.00010877,2]
[346815455,1735304781320,-724.66,0.00010877,2]
[346815456,1735304781344,-824.63,0.00010877,2]
[346815457,1735304781369,-2434.29,0.00010877,2]
[346815458,1735304781394,-3677.82,0.00010877,2]
[346815459,1735304781422,-500.0,0.00010877,2]
[346815460,1735304781446,-1499.42,0.00010877,2]
[346815461,1735304781472,-500.0,0.00010877,2]
[346815462,1735304781496,-500.0,0.00010877,2]
[346815463,1735304781520,-500.0,0.00010877,2]
[346815464,1735304781546,-500.0,0.00010877,2]
[346815465,1735304781572,-500.0,0.00010877,2]
[346815466,1735304781598,-1762.33,0.00010877,2]
[346815467,1735304781623,-1012.16,0.00010877,2]
[346815468,1735304781651,-500.0,0.00010877,2]
[346815469,1735304781675,-500.0,0.00010877,2]
[346815470,1735304781702,-883.99,0.00010877,2]
[346815471,1735304781728,-500.0,0.00010877,2]
[346815472,1735304781754,-500.0,0.00010877,2]
[346815473,1735304781779,-500.0,0.00010877,2]
[346815474,1735304781806,-500.0,0.00010877,2]
[346815475,1735304781832,-500.0,0.00010877,2]
[346815476,1735304781856,-500.0,0.00010877,2]
[346815477,1735304781882,-998.83,0.00010877,2]
[346815478,1735304781908,-500.0,0.00010877,2]
[346815479,1735304781933,-1330.19,0.00010877,2]
[346815480,1735304781958,-4491.07,0.00010877,2]
[346815481,1735304781983,-650.65,0.00010877,2]
[346815482,1735304782008,-2087.54,0.00010877,2]
[346815483,1735304782032,-500.0,0.00010877,2]
[346815484,1735304782058,-500.0,0.00010877,2]
[346815485,1735304782082,-1462.62,0.00010877,2]
[346815486,1735304782106,-1129.99,0.00010877,2]
[346815487,1735304782131,-500.0,0.00010877,2]
[346815488,1735304782155,-3684.69,0.00010877,2]
[346815489,1735304782179,-500.0,0.00010877,2]
[346815490,1735304782203,-2584.86,0.00010877,2]
[346815491,1735304782228,-17409.84,0.00010877,2]
[346815492,1735304782252,-500.0,0.00010877,2]
[346815493,1735304782276,-500.0,0.00010877,2]
[346815494,1735304782303,-500.0,0.00010877,2]
[346815495,1735304782329,-1859.14166653,0.00010877,2]
[346815506,1735305002304,783.7,8.219e-05,2]
[346815507,1735305032182,-1000.0,0.00010066,2]
[346815508,1735305032193,-256.87,0.00010137,2]
[346815509,1735305032203,-783.7,0.00010479,2]
[346815510,1735305032212,-500.0,0.00010778,2]
[346815511,1735305032221,-91.88265802,0.00010778,2]
[346815694,1735305039889,-1934.88,0.00010778,2]
[346815695,1735305039901,-428.9923958,0.00010778,2]
[346815696,1735305039946,-500.47233503,0.00010778,2]
[346815697,1735305039958,-2043.77261115,0.00010778,2]
[346815698,1735305039968,-154.95509586,0.00010779,2]
[346815699,1735305039978,-886.74,0.00010876,2]
[346815700,1735305039987,-67.23072645,0.00010876,2]
[346815701,1735305040021,-774.6985844,0.00010876,2]
[346815702,1735305040119,-31.90068915,0.00010876,2]
[346815703,1735305040130,-500.0,0.00010876,2]
[346815704,1735305040140,-2188.08,0.00010876,2]
[346815705,1735305040149,-500.0,0.00010876,2]
[346815706,1735305040159,-523.27,0.00010876,2]
[346815707,1735305040168,-591.04,0.00010877,2]
[346815708,1735305040178,-500.0,0.00010877,2]
[346815709,1735305040188,-500.0,0.00010877,2]
[346815710,1735305040197,-500.0,0.00010877,2]
[346815711,1735305040207,-1376.96,0.00010877,2]
[346815712,1735305040216,-632.02,0.00010877,2]
[346815713,1735305040226,-500.62555668,0.00010877,2]
[346815714,1735305040235,-500.0,0.00010877,2]
[346815715,1735305040244,-901.76,0.00010877,2]
[346815716,1735305040254,-658.4,0.00010877,2]
[346815717,1735305040266,-1097.8,0.00010877,2]
[346815718,1735305040276,-500.0,0.00010877,2]
[346815719,1735305040286,-663.9,0.00010877,2]
[346815720,1735305040295,-500.0,0.00010877,2]
[346815721,1735305040305,-500.0,0.00010877,2]
[346815722,1735305040315,-798.81,0.00010877,2]
[346815723,1735305040325,-500.0,0.00010877,2]
[346815724,1735305040335,-500.0,0.00010877,2]
[346815725,1735305040344,-373.16556102,0.00010877,2]
[346815726,1735305040354,-500.0,0.00010877,2]
[346815727,1735305040364,-1352.21,0.00010877,2]
[346815728,1735305040374,-500.0,0.00010877,2]
[346815729,1735305040383,-500.0,0.00010877,2]
[346815730,1735305040393,-605.18,0.00010877,2]
[346815731,1735305040403,-500.0,0.00010877,2]
[346815732,1735305040412,-500.0,0.00010877,2]
[346815733,1735305040422,-500.0,0.00010877,2]
[346815734,1735305040431,-762.57,0.00010877,2]
[346815735,1735305040441,-500.0,0.00010877,2]
[346815736,1735305040450,-500.0,0.00010877,2]
[346815737,1735305040460,-502.4077007,0.00010877,2]
[346815738,1735305040469,-1466.07,0.00010877,2]
[346815739,1735305040479,-1619.83,0.00010877,2]
[346815740,1735305040488,-500.0,0.00010877,2]
[346815741,1735305040498,-500.0,0.00010877,2]
[346815742,1735305040509,-500.0,0.00010877,2]
[346815743,1735305040520,-500.0,0.00010877,2]
[346815744,1735305040529,-500.0,0.00010877,2]
[346815745,1735305040541,-500.0,0.00010877,2]
[346815746,1735305040551,-238.3480895,0.00010877,2]
[346815747,1735305040560,-500.0,0.00010877,2]
[346815748,1735305040570,-500.0,0.00010877,2]
[346815749,1735305040579,-500.0,0.00010877,2]
[346815750,1735305040589,-500.0,0.00010877,2]
[346815751,1735305040599,-500.0,0.00010877,2]
[346815752,1735305040609,-500.0,0.00010877,2]
[346815753,1735305040618,-500.0,0.00010877,2]
[346815754,1735305040628,-1113.82,0.00010877,2]
[346815755,1735305040638,-500.0,0.00010877,2]
[346815756,1735305040648,-1842.93,0.00010877,2]
[346815757,1735305040658,-500.0,0.00010877,2]
[346815758,1735305040668,-1369.21,0.00010877,2]
[346815759,1735305040678,-500.0,0.00010877,2]
[346815760,1735305040688,-500.0,0.00010877,2]